bitfinex/quotes_SOLUSD_20240905
["timestamp","ask_amount","ask_price","bid_price","bid_amount"]
[1725566989963,1.65813917,129.02,128.97,7.7537]
[1725566989964,7.7514,129.01,128.97,7.7537]
[1725566990151,7.7514,129.01,128.98,9.30332499]
[1725566990354,7.7514,129.01,128.98,7.753]
[1725566995669,7.7514,129.01,128.97,7.7534]
[1725566996247,1.65813917,129.02,128.96,35.9172]
[1725566996456,21.03573917,129.02,128.97,1.55045682]
[1725566996767,20.0,129.01,128.96,16.5315]
[1725566996941,20.0,129.01,128.96,24.2854]
[1725566997147,7.7517,129.01,128.97,1.55043544]
[1725566997347,27.7519,129.0,128.97,1.55043544]
[1725566997648,7.7519,129.0,128.97,1.55043544]
[1725566998163,7.7519,129.0,128.97,46.55043544]
[1725566999759,7.7526,128.99,128.97,45.0]
[1725566999951,7.7532,128.98,128.96,16.5315]
[1725567000748,19.3801,129.0,128.93,15.6125]
[1725567000979,7.7543,128.96,128.93,15.6125]
[1725567001361,7.755,128.95,128.93,15.6125]
[1725567001578,1.65813917,129.02,128.95,50.0]
[1725567001788,9.10003535,129.03,128.99,7.7521]
[1725567001985,9.10003535,129.03,129.0,1.55003003]
[1725567002155,7.7502,129.03,129.0,1.55003003]
[1725567002355,7.7496,129.04,129.0,9.30193003]
[1725567002780,7.7502,129.03,129.0,1.55003003]
[1725567002978,2.18661011,129.06,129.0,1.55003003]
[1725567002979,7.7497,129.04,129.0,59.0209]
[1725567004170,7.7491,129.05,129.0,59.0209]
[1725567004683,7.7491,129.05,129.01,15.8147]
[1725567004979,7.7491,129.05,129.02,45.0]
[1725567005479,7.7491,129.05,129.03,1.54977912]
[1725567005683,0.8369896,129.06,129.03,14.79588592]
[1725567005857,0.8369896,129.06,129.05,13.2461068]
[1725567006183,0.8369896,129.06,129.05,14.7953485]
[1725567006351,0.8369896,129.06,129.05,46.5492417]
[1725567009553,0.8369896,129.06,129.05,45.0]
[1725567010276,0.8369896,129.06,129.05,46.54934011]
[1725567011167,0.8369896,129.06,129.05,45.0]
[1725567011765,0.8369896,129.06,129.04,6.1997]
[1725567011983,0.8369896,129.06,129.01,35.1917]
[1725567012277,7.7489,129.05,129.01,42.9426]
[1725567012795,8.5853896,129.06,129.02,7.7505]
[1725567013485,8.5853896,129.06,129.03,45.0]
[1725567014567,7.749,129.05,129.03,45.0]
[1725567014777,7.749,129.05,129.02,45.0]
[1725567015164,7.7507,129.02,129.01,15.8147]
[1725567015382,19.3738,129.04,128.98,16.1807]
[1725567015691,7.7523,129.0,128.98,16.1807]
[1725567016385,7.7515,129.01,128.98,16.1807]
[1725567019393,7.7515,129.01,128.99,45.0]
[1725567019795,7.7509,129.02,128.99,45.0]
[1725567021685,7.7514,129.01,128.99,45.0]
[1725567022666,7.7509,129.02,128.99,45.0]
[1725567023181,7.7509,129.02,129.0,1.54997703]
[1725567026090,7.7513,129.01,128.99,45.0]
[1725567026791,1.34977375,129.04,128.99,45.0]
[1725567026792,7.7501,129.03,128.99,122.1333]
[1725567026968,7.7501,129.03,128.99,72.1333]
[1725567027170,7.7501,129.03,128.99,122.1333]
[1725567027598,7.7501,129.03,129.0,7.7518]
[1725567027793,7.7501,129.03,129.01,45.0]
[1725567027976,1.34977375,129.04,129.01,45.0]
[1725567027977,9.09947375,129.04,129.01,45.0]
[1725567028478,7.7497,129.04,129.01,52.7512]
[1725567028679,7.7497,129.04,129.02,1.54971906]
[1725567030597,7.7497,129.04,129.01,45.0]
[1725567030808,7.7501,129.03,129.01,45.0]
[1725567032670,7.7507,129.02,129.01,45.0]
[1725567032996,7.7507,129.02,129.0,45.0]
[1725567033205,7.7513,129.01,128.98,16.1807]
[1725567033502,7.7525,128.99,128.98,16.1807]
[1725567034690,7.7525,128.99,128.98,61.1807]
[1725567034890,7.752,129.0,128.98,61.1807]
[1725567037192,7.7525,128.99,128.98,45.0]
[1725567037398,7.7534,128.98,128.94,23.1825]
[1725567037596,7.7534,128.98,128.95,45.0]
[1725567038317,19.3797,129.01,128.95,45.0]
[1725567038318,7.7538,128.97,128.95,45.0]
[1725567038688,7.7543,128.96,128.94,15.4271]
[1725567038914,1.65813917,129.0,128.94,15.4271]
[1725567038915,7.7549,128.95,128.94,15.4271]
[1725567039124,7.7563,128.93,128.91,15.1108]
[1725567039414,19.385,128.97,128.91,15.1108]
[1725567039588,7.7557,128.94,128.91,15.1108]
[1725567039785,7.7562,128.93,128.91,15.1108]
[1725567040596,7.7557,128.94,128.91,15.1108]
[1725567040807,7.7557,128.94,128.92,1.55109516]
[1725567042089,7.7557,128.94,128.91,15.1108]
[1725567042504,7.7563,128.93,128.91,15.1108]
[1725567046896,7.7568,128.92,128.9,6.1656]
[1725567051606,1.3507034,128.94,128.88,16.1154]
[1725567051804,1.3507034,128.94,128.86,6.4151]
[1725567052002,7.7585,128.89,128.86,6.4151]
[1725567054516,7.7591,128.88,128.85,23.0913]
[1725567054737,7.7591,128.88,128.85,15.3308]
[1725567059827,7.7591,128.88,128.86,1.55180123]
[1725567060711,7.7591,128.88,128.85,15.3308]
[1725567061423,7.7591,128.88,128.86,1.55180555]
[1725567061810,1.65813917,128.91,128.85,15.3308]
[1725567061811,7.7587,128.89,128.85,15.3308]
[1725567062015,7.7581,128.9,128.86,72.1607]
[1725567062523,7.7581,128.9,128.87,7.7596]
[1725567062701,7.7581,128.9,128.88,45.0]
[1725567066132,19.3922,128.92,128.85,15.3308]
[1725567066312,19.3953,128.9,128.82,16.0042]
[1725567066629,7.7599,128.87,128.83,14.2141]
[1725567066830,21.65813917,128.89,128.83,6.4523]
[1725567066831,7.7591,128.88,128.83,6.4523]
[1725567067327,7.7591,128.88,128.84,27.1649]
[1725567067719,7.7591,128.88,128.85,45.0]
[1725567068519,27.7589,128.89,128.85,52.7608]
[1725567068715,27.7589,128.89,128.86,7.7602]
[1725567068928,27.7589,128.89,128.87,45.0]
[1725567069112,27.7587,128.89,128.85,7.7605]
[1725567069314,27.7587,128.89,128.86,45.0]
[1725567073339,27.7587,128.89,128.87,1.55170213]
[1725567074118,7.7592,128.88,128.86,45.0]
[1725567075726,9.10883459,128.91,128.87,9.31111148]
[1725567075927,7.7577,128.91,128.88,45.0]
[1725567076131,7.7577,128.91,128.89,1.55140438]
[1725567076434,7.7569,128.92,128.89,1.55140438]
[1725567077116,7.7561,128.94,128.9,9.30898402]
[1725567077318,7.7561,128.94,128.91,45.0]
[1725567077629,7.7561,128.94,128.92,1.55106609]
[1725567078532,7.7561,128.93,128.91,45.0]
[1725567078744,7.7561,128.93,128.9,45.0]
[1725567079246,7.7568,128.92,128.9,45.0]
[1725567079429,1.65813917,128.95,128.86,121.47179612]
[1725567079744,7.7573,128.91,128.88,45.0]
[1725567081017,21.65813917,128.95,128.88,45.0]
[1725567081244,19.389,128.94,128.88,45.0]
[1725567081437,7.758,128.9,128.87,16.4089]
[1725567082043,7.7585,128.89,128.86,19.3999]
[1725567083019,7.7585,128.89,128.87,45.0]
[1725567083725,7.758,128.9,128.87,45.0]
[1725567083916,7.758,128.9,128.88,1.54903877]
[1725567084826,7.758,128.9,128.87,45.0]
[1725567085538,7.7587,128.89,128.87,45.0]
[1725567085742,7.7587,128.89,128.86,46.5516868]
[1725567086717,7.7587,128.89,128.86,45.0]
[1725567086921,7.7592,128.88,128.84,22.9106]
[1725567087131,21.05003917,128.92,128.84,15.1493]
[1725567087132,19.395,128.9,128.84,15.1493]
[1725567087331,21.65813917,128.89,128.84,15.1493]
[1725567087638,7.7598,128.87,128.84,15.1493]
[1725567089651,7.7605,128.86,128.83,19.4043]
[1725567090230,7.7605,128.86,128.84,1.55206129]
[1725567092057,7.7599,128.87,128.84,1.55206129]
[1725567092258,7.7599,128.87,128.84,46.55206129]
[1725567092555,7.7595,128.88,128.84,54.31336129]
[1725567092730,7.7595,128.88,128.85,7.7607]
[1725567092928,7.7595,128.88,128.84,52.7613]
[1725567093138,20.0,128.89,128.84,52.7613]
[1725567093139,7.7598,128.87,128.84,52.7613]
[1725567094852,1.65813917,128.87,128.81,34.4658]
[1725567095152,7.7619,128.84,128.81,34.4658]
[1725567095354,7.7619,128.84,128.81,42.2291]
[1725567095560,28.34363917,128.87,128.78,19.4117]
[1725567095857,7.7629,128.82,128.78,27.1765]
[1725567096732,7.7629,128.82,128.79,7.7645]
[1725567096960,7.7624,128.83,128.79,7.7645]
[1725567097146,7.7628,128.82,128.78,27.1768]
[1725567097353,1.65813917,128.85,128.79,1.55236171]
[1725567097530,20.0,128.85,128.8,1.55233493]
[1725567097943,1.35171469,128.84,128.78,69.4117]
[1725567098135,7.7619,128.84,128.8,7.7639]
[1725567098648,7.7621,128.83,128.81,45.0]
[1725567100346,7.7621,128.83,128.79,7.7643]
[1725567100638,7.7621,128.83,128.8,45.0]
[1725567110267,7.7633,128.81,128.8,45.0]
[1725567110469,7.7633,128.81,128.78,19.4117]
[1725567110470,21.06173917,128.85,128.78,27.1766]
[1725567110673,21.06173917,128.85,128.77,7.7654]
[1725567110674,7.7637,128.81,128.77,7.7654]
[1725567110880,7.7625,128.83,128.79,7.7641]
[1725567111165,7.7631,128.82,128.78,27.1774]
[1725567111674,7.7624,128.83,128.79,7.7645]
[1725567112156,7.7624,128.83,128.8,45.0]
[1725567112470,7.7627,128.82,128.8,45.0]
[1725567113461,7.7627,128.82,128.78,27.1773]
[1725567115278,7.7627,128.82,128.79,45.0]
[1725567116176,7.7627,128.82,128.8,1.55014837]
[1725567116755,7.7623,128.83,128.8,1.55014837]
[1725567116954,7.7619,128.84,128.8,9.31394837]
[1725567117170,1.65813917,128.86,128.8,9.31394837]
[1725567117171,27.7622,128.83,128.8,7.7638]
[1725567117779,10.76979098,128.87,128.83,7.7617]
[1725567117965,9.11165181,128.87,128.84,1.55202441]
[1725567118165,7.7599,128.87,128.84,1.55202441]
[1725567118368,7.7599,128.87,128.84,45.0]
[1725567118561,7.7599,128.87,128.84,46.5519756]
[1725567120972,9.11025716,128.89,128.85,7.7609]
[1725567121177,27.7592,128.88,128.85,7.7609]
[1725567121376,7.7598,128.87,128.84,72.1652]
[1725567121665,7.7604,128.86,128.84,45.0]
[1725567122482,7.7604,128.86,128.82,27.1692]
[1725567122658,7.7604,128.86,128.83,45.0]
[1725567124266,7.7612,128.85,128.82,19.4068]
[1725567124982,7.7612,128.85,128.82,28.72179288]
[1725567125685,7.7605,128.86,128.83,7.7621]
[1725567125871,7.7605,128.86,128.83,9.31420873]
[1725567129689,7.7605,128.86,128.83,7.7621]
[1725567130490,7.7599,128.87,128.84,1.55214224]
[1725567130792,21.65813917,128.88,128.84,54.31364224]
[1725567130793,27.7593,128.88,128.84,54.31364224]
[1725567131693,1.35135716,128.89,128.85,1.55183253]
[1725567131870,1.35135716,128.89,128.86,9.31172745]
[1725567132071,20.0,128.89,128.86,9.31172745]
[1725567132592,20.0,128.89,128.84,64.4024]
[1725567132766,7.7593,128.88,128.84,64.4024]
[1725567132965,7.7588,128.89,128.85,9.31259032]
[1725567133167,7.7588,128.89,128.86,46.55176165]
[1725567133793,1.65813917,128.9,128.84,27.1636]
[1725567133794,7.7591,128.88,128.84,27.1636]
[1725567133992,1.65813917,128.87,128.81,32.68347121]
[1725567134174,1.35143299,128.88,128.82,45.0]
[1725567134175,7.7604,128.86,128.82,45.0]
[1725567134869,7.76,128.87,128.83,7.762]
[1725567135483,7.76,128.87,128.84,45.0]
[1725567135869,1.35143299,128.88,128.84,52.7615]
[1725567136092,1.35143299,128.88,128.85,9.31258515]
[1725567136287,1.65813917,128.9,128.85,1.55198515]
[1725567136672,7.7595,128.88,128.85,46.55198515]
[1725567137775,7.7595,128.88,128.86,1.55188844]
[1725567137992,7.2847,128.95,128.87,13.27647121]
[1725567138186,7.7565,128.93,128.89,7.7581]
[1725567138804,7.7565,128.93,128.9,46.5512711]
[1725567139280,7.7556,128.94,128.9,45.0]
[1725567139479,7.757,128.92,128.89,19.3958]
[1725567142202,7.757,128.92,128.89,27.1543]
[1725567142705,7.7557,128.94,128.9,7.7578]
[1725567142880,20.0,128.93,128.9,52.7578]
[1725567143373,27.7565,128.93,128.9,45.0]
[1725567144982,7.7571,128.92,128.9,1.55125205]
[1725567145189,7.7571,128.92,128.9,45.0]
[1725567148094,9.41523917,128.92,128.89,19.3958]
[1725567148997,7.7573,128.91,128.87,27.1584]
[1725567150305,7.7573,128.91,128.88,45.0]
[1725567150498,7.7579,128.9,128.88,45.0]
[1725567151897,7.7576,128.91,128.88,45.0]
[1725567152297,7.757,128.92,128.89,1.19253376]
[1725567152696,7.757,128.92,128.89,7.7583]
[1725567152986,7.757,128.92,128.9,45.0]
[1725567154607,27.7564,128.93,128.9,45.0]
[1725567155202,7.7567,128.92,128.9,45.0]
[1725567155399,7.7567,128.92,128.89,7.7583]
[1725567156009,7.7567,128.92,128.88,7.7588]
[1725567156310,7.7567,128.92,128.89,45.0]
[1725567156311,7.7574,128.91,128.89,45.0]
[1725567156503,7.7587,128.89,128.85,24.0596]
[1725567156806,7.7582,128.9,128.86,52.7602]
[1725567158606,7.7575,128.91,128.87,28.70999112]
[1725567158783,7.7575,128.91,128.88,45.0]
[1725567159697,7.757,128.92,128.88,52.759]
[1725567159898,20.0,128.91,128.88,52.759]
[1725567162498,27.7575,128.91,128.88,52.759]
[1725567163004,27.7575,128.91,128.88,45.0]
[1725567163209,7.7575,128.91,128.88,45.0]
[1725567164409,7.7579,128.9,128.88,45.0]
[1725567167511,7.7576,128.91,128.88,52.7591]
[1725567167697,3.00904637,128.95,128.89,13.26667597]
[1725567168009,3.00904637,128.95,128.9,53.95525349]
[1725567168010,7.7556,128.94,128.9,53.95525349]
[1725567168400,7.7563,128.93,128.9,45.0]
[1725567169926,1.65813917,128.92,128.87,19.3993]
[1725567170109,7.7579,128.9,128.86,7.76]
[1725567171305,7.7579,128.9,128.87,52.7596]
[1725567172813,7.7579,128.9,128.87,45.0]
[1725567174317,7.7579,128.9,128.87,52.7596]
[1725567176615,7.7576,128.91,128.88,9.19002058]
[1725567176817,7.7561,128.93,128.9,7.7575]
[1725567177127,7.7561,128.93,128.9,9.30910411]
[1725567177515,7.7561,128.93,128.9,1.55130411]
[1725567180114,7.7561,128.93,128.89,72.1533]
[1725567180315,7.7561,128.93,128.9,1.55130354]
[1725567180907,7.7561,128.93,128.89,72.1533]
[1725567181929,7.7561,128.93,128.9,1.55130969]
[1725567185652,9.10681115,128.93,128.9,1.55130969]
[1725567189445,1.35071115,128.93,128.91,9.30861024]
[1725567189623,1.35071115,128.93,128.92,45.0]
[1725567191226,7.7544,128.96,128.92,52.7562]
[1725567191425,9.10474516,128.96,128.92,52.7562]
[1725567191943,9.10474516,128.96,128.93,7.756]
[1725567191944,1.35034516,128.96,128.93,7.756]
[1725567192144,9.10464516,128.96,128.94,45.0]
[1725567192642,9.10464516,128.96,128.93,45.0]
[1725567194138,9.10464516,128.96,128.94,1.55088596]
[1725567195330,9.10464516,128.96,128.93,45.0]
[1725567196029,7.7551,128.95,128.93,45.0]
[1725567196227,7.7551,128.95,128.92,45.0]
[1725567197646,9.10484516,128.96,128.92,52.7566]
[1725567197843,9.10484516,128.96,128.93,1.55103108]
[1725567198061,9.10484516,128.96,128.92,52.7566]
[1725567203429,1.35034516,128.96,128.93,28.69669245]
[1725567203745,21.35034516,128.96,128.94,45.0]
[1725567204249,29.10474516,128.96,128.94,45.0]
[1725567205938,21.35034516,128.96,128.95,1.55086002]
[1725567207255,29.10464516,128.96,128.94,45.0]
[1725567207443,21.35034516,128.96,128.94,45.0]
[1725567208554,21.35034516,128.96,128.94,46.55083662]
[1725567210254,29.10464516,128.96,128.94,46.55083662]
[1725567211055,29.10464516,128.96,128.94,45.0]
[1725567213663,21.35034516,128.96,128.94,45.0]
[1725567214341,29.10474516,128.96,128.94,45.0]
[1725567215045,1.35034516,128.96,128.95,1.55083758]
[1725567215477,7.7534,128.98,128.95,1.55083758]
[1725567215642,27.7538,128.97,128.95,1.55083758]
[1725567216652,1.65813917,129.0,128.95,9.30563758]
[1725567216850,7.7529,128.99,128.96,46.55051435]
[1725567217050,1.65813917,129.02,128.96,46.55051435]
[1725567217256,7.7509,129.02,128.98,7.7527]
[1725567217568,7.7509,129.02,128.97,19.3842]
[1725567217569,7.7509,129.02,128.99,46.55017185]
[1725567217767,7.7509,129.02,128.99,1.55017185]
[1725567217941,7.7503,129.03,128.99,9.30227185]
[1725567218141,7.7496,129.04,129.0,52.7518]
[1725567218342,7.7496,129.04,129.0,54.24689281]
[1725567219437,7.7496,129.04,129.0,52.7518]
[1725567220276,7.7502,129.03,129.0,45.0]
[1725567224669,7.7509,129.02,129.0,45.0]
[1725567225466,7.7532,128.98,128.96,16.4838]
[1725567225669,7.7532,128.98,128.95,6.2937]
[1725567225670,7.7538,128.97,128.93,43.6287]
[1725567226948,7.7538,128.97,128.94,7.7554]
[1725567227270,7.7538,128.97,128.95,45.0]
[1725567227473,7.7532,128.98,128.95,45.0]
[1725567227656,7.7526,128.99,128.96,1.55073218]
[1725567227854,20.0,128.98,128.96,1.55073218]
[1725567228960,20.0,128.98,128.95,52.7547]
[1725567229368,27.7531,128.98,128.95,52.7547]
[1725567229561,27.7531,128.98,128.95,45.0]
[1725567231248,27.7531,128.98,128.95,52.7549]
[1725567232074,27.7531,128.98,128.95,45.0]
[1725567232276,27.7531,128.98,128.94,45.0]
[1725567232480,27.7531,128.98,128.94,52.7551]
[1725567232982,7.7537,128.97,128.94,45.0]
[1725567234784,20.0,128.98,128.95,7.7547]
[1725567235068,7.7532,128.98,128.94,52.7552]
[1725567237278,7.7527,128.99,128.95,9.30554155]
[1725567237479,20.0,128.98,128.96,46.55051224]
[1725567241967,7.7527,128.99,128.96,46.55051224]
[1725567242564,9.10230657,129.0,128.96,54.30461224]
[1725567242774,1.35010657,129.0,128.96,95.0]
[1725567242964,1.65813917,129.04,128.98,15.1069]
[1725567243167,1.65813917,129.04,128.99,46.23710874]
[1725567243371,1.65813917,129.04,128.99,45.0]
[1725567243779,7.751,129.02,128.99,45.0]
[1725567244173,27.7513,129.01,128.99,45.0]
[1725567246280,27.7513,129.01,128.97,26.0061]
[1725567246281,7.7519,129.0,128.97,27.1363]
[1725567247789,7.7519,129.0,128.98,46.55041605]
[1725567248387,7.7519,129.0,128.98,45.0]
[1725567248896,27.7516,129.01,128.98,45.0]
[1725567250480,20.0,129.01,128.98,52.7526]
[1725567253567,27.7514,129.01,128.98,52.7526]
[1725567254186,27.7514,129.01,128.99,1.55026796]
[1725567254768,27.7514,129.01,128.98,52.7526]
[1725567257290,20.0,129.01,128.98,45.0]
[1725567257583,20.0,129.01,128.95,19.3871]
[1725567257584,7.7522,129.0,128.95,19.3871]
[1725567258371,7.7522,129.0,128.97,7.7537]
[1725567258987,7.7522,129.0,128.98,46.5504214]
[1725567259389,7.7522,129.0,128.98,45.0]
[1725567260968,7.7522,129.0,128.97,52.7536]
[1725567261692,7.7514,129.01,128.97,52.7536]
[1725567262596,7.7519,129.0,128.97,52.7536]
[1725567263265,7.7515,129.01,128.97,52.7536]
[1725567263695,7.7515,129.01,128.98,1.5503957]
[1725567265004,21.34998423,129.02,128.98,1.5503957]
[1725567265165,1.34998423,129.02,128.99,1.55017879]
[1725567265490,21.34998423,129.02,128.99,1.55017879]
[1725567265691,29.10078423,129.02,128.99,9.30237879]
[1725567265878,29.10078423,129.02,129.0,45.0]
[1725567266466,27.7508,129.02,129.0,45.0]
[1725567267892,1.65813917,129.04,129.01,1.55019124]
[1725567268073,7.7499,129.04,129.01,1.55019124]
[1725567268280,20.0,129.03,129.01,1.55019124]
[1725567269178,10.24392877,129.06,129.01,1.55019124]
[1725567269491,9.93516877,129.06,129.02,1.54981746]
[1725567270286,9.93516877,129.06,129.02,9.30031746]
[1725567270477,20.0,129.05,129.03,46.44223645]
[1725567272692,27.7489,129.05,129.03,46.44223645]
[1725567272995,27.7489,129.05,129.02,45.0]
[1725567273890,7.7496,129.04,129.02,45.0]
[1725567274193,7.7496,129.04,129.01,45.0]
[1725567274391,7.7502,129.03,129.0,19.3792]
[1725567274590,7.7508,129.02,128.99,15.2375]
[1725567275997,7.7503,129.03,129.0,45.0]
[1725567277107,7.7525,128.99,128.96,16.1503]
[1725567277282,1.65813917,128.98,128.94,6.6248]
[1725567277488,7.7543,128.96,128.93,16.1503]
[1725567278093,7.7543,128.96,128.93,23.9063]
[1725567279483,7.7539,128.97,128.93,23.9063]
[1725567280804,7.7539,128.97,128.94,45.0]
[1725567282294,1.65813917,128.99,128.94,45.0]
[1725567282494,21.65813917,128.99,128.94,45.0]
[1725567282806,7.7545,128.96,128.94,45.0]
[1725567283378,7.7538,128.97,128.94,45.0]
[1725567286507,20.0,128.99,128.89,16.2336]
[1725567286508,7.757,128.92,128.89,16.2336]
[1725567287179,7.7564,128.93,128.89,23.992]
[1725567287486,7.7564,128.93,128.9,1.55129808]
[1725567288391,7.7564,128.93,128.9,45.0]
[1725567289802,9.10718343,128.93,128.9,45.0]
[1725567290480,9.10718343,128.93,128.9,52.7578]
[1725567290684,9.10718343,128.93,128.9,45.0]
[1725567291594,9.10718343,128.93,128.9,52.7579]
[1725567292288,1.35078343,128.93,128.9,52.7579]
[1725567292492,1.35078343,128.93,128.9,54.309161]
[1725567297493,1.35078343,128.93,128.91,7.7572]
[1725567297697,1.35078343,128.93,128.92,54.30779322]
[1725567297907,20.0,128.95,128.92,54.30779322]
[1725567298111,20.0,128.95,128.93,1.55099404]
[1725567298615,27.7549,128.95,128.93,1.55099404]
[1725567300212,20.0,128.95,128.93,1.55099404]
[1725567300398,20.0,128.95,128.92,45.0]
[1725567301817,27.7549,128.95,128.92,45.0]
[1725567302808,27.7549,128.95,128.91,45.0]
[1725567302987,9.41363917,128.94,128.91,45.0]
[1725567303191,7.7567,128.92,128.91,45.0]
[1725567303415,7.7567,128.92,128.89,16.2336]
[1725567304886,7.7567,128.92,128.89,17.78497079]
[1725567305094,1.65813917,128.91,128.85,66.1268]
[1725567305392,21.65813917,128.93,128.88,7.7586]
[1725567305592,1.65813917,128.92,128.85,16.1268]
[1725567305796,7.759,128.89,128.85,16.1268]
[1725567306023,1.65813917,128.88,128.85,16.1268]
[1725567306190,9.41733917,128.88,128.85,16.1268]
[1725567306515,1.65813917,128.92,128.85,16.1268]
[1725567306728,3.0086224,128.96,128.92,7.7566]
[1725567306905,3.0086224,128.96,128.87,63.26667597]
[1725567306906,3.0086224,128.96,128.9,19.3943]
[1725567307096,10.7633224,128.96,128.91,9.30835844]
[1725567307515,1.35048323,128.96,128.92,20.94217326]
[1725567307813,7.7533,128.98,128.93,46.5508136]
[1725567308018,7.7533,128.98,128.93,45.0]
[1725567308230,7.752,129.0,128.94,9.30581942]
[1725567308400,7.7526,128.99,128.95,45.0]
[1725567308793,1.65813917,129.02,128.96,23.3662]
[1725567309102,1.65813917,129.02,128.97,45.0]
[1725567309292,1.65813917,129.03,128.97,45.0]
[1725567309496,1.65813917,129.03,128.94,25.8116]
[1725567309796,1.65813917,129.03,128.95,45.0]
[1725567310019,7.7538,128.97,128.95,45.0]
[1725567310198,50.40903917,129.03,128.92,15.6119]
[1725567310515,7.7555,128.94,128.9,6.4674]
[1725567310823,7.7555,128.95,128.9,6.4674]
[1725567311004,21.65813917,128.94,128.9,6.4674]
[1725567311209,29.41393917,128.94,128.9,6.4674]
[1725567311515,29.41393917,128.94,128.89,15.6371]
[1725567311516,9.41433917,128.93,128.89,15.6371]
[1725567311705,9.41503917,128.92,128.89,15.6371]
[1725567312018,1.65813917,128.92,128.86,16.4341]
[1725567312227,1.65813917,128.92,128.86,24.1942]
[1725567312228,27.7573,128.91,128.86,24.1942]
[1725567312403,1.65813917,128.92,128.86,24.1942]
[1725567312813,1.65813917,128.93,128.86,24.1942]
[1725567313124,7.7568,128.92,128.87,9.17176009]
[1725567313320,20.0,128.91,128.87,9.17176009]
[1725567313498,7.7568,128.92,128.88,45.0]
[1725567313702,7.7554,128.95,128.89,1.41214093]
[1725567313902,20.0,128.94,128.9,1.4125826]
[1725567314124,20.0,128.94,128.9,46.4125826]
[1725567314629,7.7543,128.96,128.9,58.26667597]
[1725567314828,9.41303917,128.95,128.9,58.26667597]
[1725567315125,7.7549,128.95,128.9,58.26667597]
[1725567316114,7.7544,128.96,128.9,66.02397597]
[1725567316315,7.7536,128.98,128.92,28.76137597]
[1725567316533,1.65813917,129.0,128.95,7.7548]
[1725567316534,9.41013917,129.0,128.95,7.7548]
[1725567316711,7.752,129.0,128.96,1.55044885]
[1725567316913,1.65813917,129.02,128.97,1.42321357]
[1725567317117,1.65813917,129.05,128.97,1.42321357]
[1725567317312,1.65813917,129.04,128.97,20.80621357]
[1725567317522,7.7508,129.02,128.98,45.0]
[1725567317918,7.7514,129.01,128.98,45.0]
[1725567318123,7.7532,128.98,128.95,6.2964]
[1725567318425,1.65813917,129.0,128.96,45.0]
[1725567318426,7.7527,128.99,128.96,45.0]
[1725567318628,1.65813917,128.98,128.95,6.2964]
[1725567318811,1.65813917,128.98,128.92,65.4947]
[1725567318812,7.7543,128.96,128.92,21.8481]
[1725567319009,7.7532,128.98,128.92,21.8481]
[1725567319207,7.7532,128.98,128.93,27.1458]
[1725567319512,1.65813917,128.97,128.92,21.8481]
[1725567319707,20.0,128.97,128.89,16.4132]
[1725567319925,1.65813917,128.96,128.89,16.4132]
[1725567320123,1.65813917,128.95,128.89,16.4132]
[1725567320327,9.41243917,128.96,128.91,7.7573]
[1725567320535,20.0,128.95,128.91,7.7573]
[1725567320709,20.0,128.95,128.9,9.30898652]
[1725567320710,29.41323917,128.95,128.9,9.30898652]
[1725567320915,29.41323917,128.95,128.9,7.7579]
[1725567321331,7.7558,128.94,128.89,43.5667]
[1725567321518,7.7558,128.94,128.89,35.8083]
[1725567321714,20.0,128.95,128.9,1.55119944]
[1725567321918,7.7538,128.97,128.92,7.7566]
[1725567322128,20.0,128.96,128.93,45.0]
[1725567322331,20.0,128.96,128.93,46.55094516]
[1725567322519,20.0,128.96,128.93,52.7556]
[1725567322721,21.65813917,128.98,128.93,52.7556]